[Event "Live Chess"]
[Site "Chess.com"]
[Date "2021.02.06"]
[Round "-"]
[White "lemonjuice99"]
[Black "Jocey107"]
[Result "0-1"]
[CurrentPosition "6k1/p4pp1/2p2n1p/1p3P2/1P2p2P/1R6/1Pr4r/1R4NK w - -"]
[Timezone "UTC"]
[ECO "C50"]
[ECOUrl "https://www.chess.com/openings/Giuoco-Piano-Game-4.O-O-Nf6"]
[UTCDate "2021.02.06"]
[UTCTime "20:31:26"]
[WhiteElo "1211"]
[BlackElo "1782"]
[TimeControl "1200+10"]
[Termination "Jocey107 won by checkmate"]
[StartTime "20:31:26"]
[EndDate "2021.02.06"]
[EndTime "20:55:43"]
[Link "https://www.chess.com/live/game/6472987959"]

1. e4 {[%clk 0:19:23]} 1... e5 {[%clk 0:20:08]} 2. Nf3 {[%clk 0:19:29.1]} 2... Nc6 {[%clk 0:20:16.2]} 3. Bc4 {[%clk 0:19:36.6]} 3... Bc5 {[%clk 0:20:24]} 4. O-O {[%clk 0:19:29.7]} 4... Nf6 {[%clk 0:20:31.1]} 5. d3 {[%clk 0:17:15.9]} 5... d6 {[%clk 0:20:34.5]} 6. Nc3 {[%clk 0:17:23.4]} 6... Na5 {[%clk 0:20:36.4]} 7. Bb3 {[%clk 0:17:21.6]} 7... Nxb3 {[%clk 0:20:40.7]} 8. axb3 {[%clk 0:17:30.1]} 8... h6 {[%clk 0:20:38.9]} 9. Na2 {[%clk 0:17:29.7]} 9... Bg4 {[%clk 0:20:37.4]} 10. h3 {[%clk 0:17:35.2]} 10... Bh5 {[%clk 0:20:42.4]} 11. b4 {[%clk 0:17:42]} 11... Bb6 {[%clk 0:20:42.3]} 12. Be3 {[%clk 0:17:42.1]} 12... c6 {[%clk 0:20:18.8]} 13. Nc3 {[%clk 0:17:39.8]} 13... O-O {[%clk 0:19:40.9]} 14. Na4 {[%clk 0:17:40.6]} 14... Bxe3 {[%clk 0:19:34.8]} 15. fxe3 {[%clk 0:17:47.1]} 15... b5 {[%clk 0:19:35.6]} 16. Nc3 {[%clk 0:17:53.6]} 16... Qb6 {[%clk 0:18:10]} 17. Qd2 {[%clk 0:17:55.4]} 17... Bg6 {[%clk 0:17:23.7]} 18. Nh4 {[%clk 0:17:47.3]} 18... Bh7 {[%clk 0:17:15.6]} 19. Nf5 {[%clk 0:17:52.6]} 19... Bxf5 {[%clk 0:17:06.4]} 20. exf5 {[%clk 0:17:59]} 20... Rfe8 {[%clk 0:16:52.3]} 21. Kh1 {[%clk 0:18:05.6]} 21... d5 {[%clk 0:16:28.6]} 22. Rf3 {[%clk 0:17:46.4]} 22... e4 {[%clk 0:16:29.2]} 23. dxe4 {[%clk 0:17:54.3]} 23... dxe4 {[%clk 0:16:34.2]} 24. Rg3 {[%clk 0:18:02.3]} 24... Rad8 {[%clk 0:16:20.6]} 25. Qf2 {[%clk 0:18:05.3]} 25... Rd7 {[%clk 0:14:53.8]} 26. Ne2 {[%clk 0:17:16.3]} 26... Rd2 {[%clk 0:14:46.3]} 27. Rc1 {[%clk 0:17:11.7]} 27... Red8 {[%clk 0:14:48.1]} 28. Qe1 {[%clk 0:16:39.5]} 28... Nh5 {[%clk 0:14:24]} 29. Rg4 {[%clk 0:16:41.4]} 29... Qxe3 {[%clk 0:14:18.6]} 30. Ng1 {[%clk 0:16:38.8]} 30... Qxe1 {[%clk 0:13:52.9]} 31. Rxe1 {[%clk 0:16:45.6]} 31... Nf6 {[%clk 0:13:38.8]} 32. Rg3 {[%clk 0:15:52.5]} 32... Rxc2 {[%clk 0:12:56.6]} 33. Rb3 {[%clk 0:15:44.4]} 33... Rdd2 {[%clk 0:11:58.2]} 34. Rb1 {[%clk 0:15:34.9]} 34... Rxg2 {[%clk 0:11:59.7]} 35. h4 {[%clk 0:15:34.7]} 35... Rh2# {[%clk 0:12:06]} 0-1

[Event "Live Chess"]
[Site "Chess.com"]
[Date "2021.02.06"]
[Round "-"]
[White "RobynoDude"]
[Black "shiningCrystal"]
[Result "1-0"]
[CurrentPosition "8/8/8/8/3Q4/5k2/2P4K/5Q2 b - -"]
[Timezone "UTC"]
[ECO "C25"]
[ECOUrl "https://www.chess.com/openings/Vienna-Game-Anderssen-Defense"]
[UTCDate "2021.02.06"]
[UTCTime "20:31:03"]
[WhiteElo "1422"]
[BlackElo "1248"]
[TimeControl "1200+10"]
[Termination "RobynoDude won by checkmate"]
[StartTime "20:31:03"]
[EndDate "2021.02.06"]
[EndTime "21:07:38"]
[Link "https://www.chess.com/live/game/6472988291"]

1. e4 {[%clk 0:20:08.4]} 1... e5 {[%clk 0:20:01.5]} 2. Nc3 {[%clk 0:20:16.1]} 2... Bc5 {[%clk 0:19:56.8]} 3. Nf3 {[%clk 0:20:06.6]} 3... Nc6 {[%clk 0:20:02.2]} 4. Bc4 {[%clk 0:20:13.8]} 4... Nf6 {[%clk 0:19:56.9]} 5. O-O {[%clk 0:20:19.3]} 5... h6 {[%clk 0:20:02.1]} 6. d3 {[%clk 0:20:26.8]} 6... O-O {[%clk 0:20:10.2]} 7. Be3 {[%clk 0:20:35.8]} 7... Bxe3 {[%clk 0:20:04.7]} 8. fxe3 {[%clk 0:20:45.7]} 8... Ng4 {[%clk 0:20:05.5]} 9. Qe2 {[%clk 0:20:27.4]} 9... d6 {[%clk 0:20:03]} 10. h3 {[%clk 0:20:33]} 10... Nf6 {[%clk 0:20:07.1]} 11. d4 {[%clk 0:20:32.8]} 11... exd4 {[%clk 0:20:14]} 12. exd4 {[%clk 0:20:41.7]} 12... Re8 {[%clk 0:20:18.7]} 13. d5 {[%clk 0:20:29.1]} 13... Ne5 {[%clk 0:19:51.9]} 14. Rae1 {[%clk 0:20:09.6]} 14... Nxf3+ {[%clk 0:19:40.1]} 15. Qxf3 {[%clk 0:20:04.1]} 15... c6 {[%clk 0:18:31]} 16. dxc6 {[%clk 0:20:07.3]} 16... bxc6 {[%clk 0:18:35.1]} 17. Rd1 {[%clk 0:20:07.2]} 17... Bb7 {[%clk 0:18:32.9]} 18. Rfe1 {[%clk 0:20:10.2]} 18... Qb6+ {[%clk 0:18:31.9]} 19. Kh2 {[%clk 0:19:54.7]} 19... Qxb2 {[%clk 0:18:28.7]} 20. Rxd6 {[%clk 0:19:36.1]} 20... Qb4 {[%clk 0:17:57.3]} 21. Qg3 {[%clk 0:18:14.1]} 21... Kf8 {[%clk 0:16:58.5]} 22. Rd4 {[%clk 0:14:47.7]} 22... c5 {[%clk 0:15:47.6]} 23. Qd6+ {[%clk 0:13:42.7]} 23... Kg8 {[%clk 0:15:45.6]} 24. Re3 {[%clk 0:13:07.7]} 24... Qb6 {[%clk 0:15:20.4]} 25. Qxb6 {[%clk 0:12:01.8]} 25... axb6 {[%clk 0:15:25.9]} 26. Rd6 {[%clk 0:11:38.5]} 26... Nxe4 {[%clk 0:15:17.1]} 27. Rxb6 {[%clk 0:11:03.9]} 27... Nxc3 {[%clk 0:15:17.5]} 28. Rxc3 {[%clk 0:11:06.2]} 28... Rab8 {[%clk 0:15:17]} 29. Rg3 {[%clk 0:10:39]} 29... Re4 {[%clk 0:15:04]} 30. Bd5 {[%clk 0:10:32.2]} 30... Re7 {[%clk 0:15:10.3]} 31. Bb3 {[%clk 0:10:22.3]} 31... Re2 {[%clk 0:14:50.2]} 32. Rbg6 {[%clk 0:10:06.1]} 32... Rxg2+ {[%clk 0:14:26.1]} 33. Rxg2 {[%clk 0:09:53.9]} 33... Bxg2 {[%clk 0:14:18.4]} 34. Rxg2 {[%clk 0:10:03.8]} 34... g6 {[%clk 0:14:15.1]} 35. Rf2 {[%clk 0:10:08.2]} 35... Rf8 {[%clk 0:14:04.2]} 36. a4 {[%clk 0:10:09.8]} 36... Kg7 {[%clk 0:14:07.2]} 37. a5 {[%clk 0:10:15.6]} 37... f5 {[%clk 0:14:14]} 38. Rd2 {[%clk 0:10:10.8]} 38... Ra8 {[%clk 0:14:15.3]} 39. Rd7+ {[%clk 0:10:14.6]} 39... Kf6 {[%clk 0:14:22]} 40. Rd6+ {[%clk 0:10:15.1]} 40... Kg5 {[%clk 0:14:29.8]} 41. a6 {[%clk 0:10:19.7]} 41... Kf4 {[%clk 0:13:54.7]} 42. Rxg6 {[%clk 0:10:03.7]} 42... h5 {[%clk 0:13:58.4]} 43. Bd5 {[%clk 0:10:05.5]} 43... Ra7 {[%clk 0:14:03.9]} 44. Rb6 {[%clk 0:10:07.3]} 44... Ke5 {[%clk 0:14:06.4]} 45. Bg2 {[%clk 0:09:58.8]} 45... Kd4 {[%clk 0:14:05.6]} 46. Bf1 {[%clk 0:10:03.1]} 46... c4 {[%clk 0:14:02.1]} 47. Rc6 {[%clk 0:10:04.8]} 47... Ke5 {[%clk 0:13:59.2]} 48. Bxc4 {[%clk 0:10:05.5]} 48... Kd4 {[%clk 0:13:48.4]} 49. Bf1 {[%clk 0:09:58.3]} 49... Kd5 {[%clk 0:13:52.7]} 50. Rb6 {[%clk 0:10:05.9]} 50... Kc5 {[%clk 0:13:57]} 51. Rb7 {[%clk 0:10:09.9]} 51... Ra8 {[%clk 0:14:03.2]} 52. a7 {[%clk 0:10:11.5]} 52... Kc6 {[%clk 0:14:10.2]} 53. Bg2+ {[%clk 0:10:05.3]} 53... Kc5 {[%clk 0:14:11.5]} 54. Rc7+ {[%clk 0:09:32.1]} 54... Kb6 {[%clk 0:14:19.7]} 55. Bxa8 {[%clk 0:09:24.5]} 55... Kxc7 {[%clk 0:14:26.6]} 56. Bg2 {[%clk 0:09:31.2]} 56... Kb6 {[%clk 0:14:34.1]} 57. a8=Q {[%clk 0:09:40.6]} 57... Kc5 {[%clk 0:14:39.8]} 58. Qf3 {[%clk 0:09:49.9]} 58... Kd4 {[%clk 0:14:49.4]} 59. Qxf5 {[%clk 0:09:59.7]} 59... Ke3 {[%clk 0:14:56.5]} 60. Qxh5 {[%clk 0:10:09.6]} 60... Kf4 {[%clk 0:15:04.1]} 61. Qb5 {[%clk 0:10:18.1]} 61... Ke3 {[%clk 0:15:10.3]} 62. h4 {[%clk 0:10:19.4]} 62... Kf4 {[%clk 0:15:16.6]} 63. h5 {[%clk 0:10:27.5]} 63... Ke3 {[%clk 0:15:25.8]} 64. h6 {[%clk 0:10:36.4]} 64... Kf2 {[%clk 0:15:35.1]} 65. h7 {[%clk 0:10:44.9]} 65... Ke3 {[%clk 0:15:41.7]} 66. h8=Q {[%clk 0:10:49.1]} 66... Kd2 {[%clk 0:15:47.5]} 67. Qd4+ {[%clk 0:10:55.8]} 67... Ke1 {[%clk 0:15:55.1]} 68. Qb1+ {[%clk 0:11:01.2]} 68... Ke2 {[%clk 0:16:00.5]} 69. Bf3+ {[%clk 0:11:07.2]} 69... Kxf3 {[%clk 0:16:06.1]} 70. Qf1# {[%clk 0:11:03.9]} 1-0

[Event "Live Chess"]
[Site "Chess.com"]
[Date "2021.02.06"]
[Round "-"]
[White "lionkingh"]
[Black "jasjas08"]
[Result "1-0"]
[CurrentPosition "r1bqr1k1/p1p2pQ1/1p1p3p/3P4/1P2PnP1/3B1N1P/PB1NR3/R5K1 b - -"]
[Timezone "UTC"]
[ECO "B00"]
[ECOUrl "https://www.chess.com/openings/Nimzowitsch-Defense-Kennedy-Variation"]
[UTCDate "2021.02.06"]
[UTCTime "20:31:25"]
[WhiteElo "1321"]
[BlackElo "1196"]
[TimeControl "1200+10"]
[Termination "lionkingh won by checkmate"]
[StartTime "20:31:25"]
[EndDate "2021.02.06"]
[EndTime "20:39:03"]
[Link "https://www.chess.com/live/game/6472988623"]

1. e4 {[%clk 0:20:07.7]} 1... e5 {[%clk 0:20:06.4]} 2. d4 {[%clk 0:20:15.3]} 2... Nc6 {[%clk 0:20:13.3]} 3. d5 {[%clk 0:20:22.9]} 3... Nd4 {[%clk 0:20:06.6]} 4. c3 {[%clk 0:20:27.4]} 4... Nf6 {[%clk 0:19:32.4]} 5. cxd4 {[%clk 0:20:34.9]} 5... exd4 {[%clk 0:19:39.5]} 6. Qxd4 {[%clk 0:20:41.6]} 6... Bd6 {[%clk 0:19:28.5]} 7. Nf3 {[%clk 0:20:43.6]} 7... O-O {[%clk 0:19:29.8]} 8. Bd3 {[%clk 0:20:51.9]} 8... b6 {[%clk 0:19:27.4]} 9. O-O {[%clk 0:20:59.4]} 9... Bc5 {[%clk 0:19:06.1]} 10. Qc3 {[%clk 0:20:56.5]} 10... d6 {[%clk 0:19:02.9]} 11. b4 {[%clk 0:20:58]} 11... Bxf2+ {[%clk 0:18:44.5]} 12. Rxf2 {[%clk 0:21:04.5]} 12... Re8 {[%clk 0:18:48.2]} 13. Nbd2 {[%clk 0:21:10.3]} 13... Ng4 {[%clk 0:18:35.5]} 14. Re2 {[%clk 0:21:12.5]} 14... h6 {[%clk 0:17:52.3]} 15. h3 {[%clk 0:21:20]} 15... Nf6 {[%clk 0:17:58]} 16. Bb2 {[%clk 0:21:21.8]} 16... Nh5 {[%clk 0:16:59.6]} 17. g4 {[%clk 0:21:19]} 17... Nf4 {[%clk 0:16:56.9]} 18. Qxg7# {[%clk 0:21:24.8]} 1-0

[Event "Live Chess"]
[Site "Chess.com"]
[Date "2021.02.06"]
[Round "-"]
[White "SwirlPawn"]
[Black "barnaclesbear"]
[Result "0-1"]
[CurrentPosition "4r1k1/2p2ppp/r3p3/8/p3P3/Q7/6PK/3q2B1 w - -"]
[Timezone "UTC"]
[ECO "D00"]
[ECOUrl "https://www.chess.com/openings/Queens-Pawn-Opening-Accelerated-London-System"]
[UTCDate "2021.02.06"]
[UTCTime "20:31:25"]
[WhiteElo "902"]
[BlackElo "1179"]
[TimeControl "1200+10"]
[Termination "barnaclesbear won by resignation"]
[StartTime "20:31:25"]
[EndDate "2021.02.06"]
[EndTime "20:52:15"]
[Link "https://www.chess.com/live/game/6472988955"]

1. d4 {[%clk 0:20:05.7]} 1... d5 {[%clk 0:20:07.5]} 2. Bf4 {[%clk 0:20:10.8]} 2... Nf6 {[%clk 0:20:14]} 3. e3 {[%clk 0:20:14.2]} 3... Bg4 {[%clk 0:20:13.7]} 4. Nf3 {[%clk 0:20:13.8]} 4... Nc6 {[%clk 0:20:11.2]} 5. Be2 {[%clk 0:20:19.3]} 5... e6 {[%clk 0:20:09.2]} 6. c4 {[%clk 0:20:15.2]} 6... dxc4 {[%clk 0:20:04.4]} 7. Bxc4 {[%clk 0:20:20.5]} 7... Bb4+ {[%clk 0:20:10.2]} 8. Nbd2 {[%clk 0:20:24]} 8... Ne4 {[%clk 0:19:41.3]} 9. Be2 {[%clk 0:19:47.4]} 9... O-O {[%clk 0:19:06.6]} 10. O-O {[%clk 0:19:48.8]} 10... Bxf3 {[%clk 0:19:00.1]} 11. Bxf3 {[%clk 0:19:44.9]} 11... Nxd2 {[%clk 0:19:05.7]} 12. a3 {[%clk 0:18:34.8]} 12... Nxf1 {[%clk 0:18:46.3]} 13. axb4 {[%clk 0:18:41.1]} 13... Nxh2 {[%clk 0:18:19.8]} 14. Bxh2 {[%clk 0:18:46.1]} 14... Nxb4 {[%clk 0:18:25.9]} 15. Qb3 {[%clk 0:18:51.3]} 15... a5 {[%clk 0:18:12.9]} 16. Bxb7 {[%clk 0:18:54.6]} 16... Ra7 {[%clk 0:18:15.5]} 17. Bf3 {[%clk 0:18:58.1]} 17... Re8 {[%clk 0:18:01]} 18. e4 {[%clk 0:18:34.3]} 18... Qxd4 {[%clk 0:16:41.3]} 19. Rc1 {[%clk 0:18:24]} 19... Nd3 {[%clk 0:15:42.8]} 20. Rd1 {[%clk 0:18:19.4]} 20... Qxf2+ {[%clk 0:15:08.3]} 21. Kh1 {[%clk 0:18:16.2]} 21... Nxb2 {[%clk 0:14:22]} 22. Bg1 {[%clk 0:17:59.5]} 22... Qh4+ {[%clk 0:13:57.2]} 23. Bh2 {[%clk 0:18:03.5]} 23... Nxd1 {[%clk 0:13:48.4]} 24. Bxd1 {[%clk 0:18:04.6]} 24... a4 {[%clk 0:13:33.6]} 25. Qa3 {[%clk 0:17:33]} 25... Qe1+ {[%clk 0:13:22.4]} 26. Bg1 {[%clk 0:17:39.3]} 26... Qxd1 {[%clk 0:13:17.6]} 27. Kh2 {[%clk 0:17:45.4]} 27... Ra6 {[%clk 0:13:11.4]} 0-1

[Event "Live Chess"]
[Site "Chess.com"]
[Date "2021.02.06"]
[Round "-"]
[White "tastycelery7"]
[Black "UgandanKnuckles7"]
[Result "0-1"]
[CurrentPosition "8/2k3p1/2p5/6p1/8/8/7r/1q2K3 w - -"]
[Timezone "UTC"]
[ECO "C45"]
[ECOUrl "https://www.chess.com/openings/Scotch-Game-Classical-Variation-5.Be3"]
[UTCDate "2021.02.06"]
[UTCTime "20:31:09"]
[WhiteElo "1442"]
[BlackElo "1507"]
[TimeControl "1200+10"]
[Termination "UgandanKnuckles7 won by checkmate"]
[StartTime "20:31:09"]
[EndDate "2021.02.06"]
[EndTime "21:04:21"]
[Link "https://www.chess.com/live/game/6472989337"]

1. e4 {[%clk 0:20:10]} 1... e5 {[%clk 0:20:08.7]} 2. Nf3 {[%clk 0:20:17.3]} 2... Nc6 {[%clk 0:20:17.6]} 3. d4 {[%clk 0:20:23.8]} 3... exd4 {[%clk 0:20:25.1]} 4. Nxd4 {[%clk 0:20:32.1]} 4... Bc5 {[%clk 0:20:29.8]} 5. Be3 {[%clk 0:20:39.4]} 5... Nxd4 {[%clk 0:20:37.6]} 6. Bxd4 {[%clk 0:20:47.9]} 6... Bxd4 {[%clk 0:20:46.5]} 7. Qxd4 {[%clk 0:20:56.4]} 7... Qf6 {[%clk 0:20:54.5]} 8. e5 {[%clk 0:21:04]} 8... Qb6 {[%clk 0:21:02.6]} 9. Qxb6 {[%clk 0:21:08.9]} 9... axb6 {[%clk 0:21:12.5]} 10. Nc3 {[%clk 0:21:17.6]} 10... f6 {[%clk 0:21:17.1]} 11. O-O-O {[%clk 0:21:19.3]} 11... fxe5 {[%clk 0:21:22.6]} 12. Re1 {[%clk 0:21:27.6]} 12... d6 {[%clk 0:21:31.6]} 13. f4 {[%clk 0:21:35.5]} 13... Nf6 {[%clk 0:20:48.7]} 14. fxe5 {[%clk 0:21:42.9]} 14... dxe5 {[%clk 0:20:57.6]} 15. Rxe5+ {[%clk 0:21:50.8]} 15... Kd7 {[%clk 0:20:59.9]} 16. Bc4 {[%clk 0:21:54.3]} 16... Kd6 {[%clk 0:20:25.6]} 17. Rhe1 {[%clk 0:21:33.4]} 17... Bg4 {[%clk 0:20:12.7]} 18. Nb5+ {[%clk 0:21:35.6]} 18... Kc6 {[%clk 0:20:09.4]} 19. Nd4+ {[%clk 0:21:31.5]} 19... Kd6 {[%clk 0:20:15.3]} 20. Nf5+ {[%clk 0:21:36.3]} 20... Bxf5 {[%clk 0:20:21.9]} 21. Rxf5 {[%clk 0:21:42.7]} 21... Rae8 {[%clk 0:20:28.7]} 22. Rff1 {[%clk 0:21:41.2]} 22... c6 {[%clk 0:20:21.9]} 23. Rd1+ {[%clk 0:21:43.2]} 23... Kc5 {[%clk 0:20:21]} 24. Bb3 {[%clk 0:21:25.8]} 24... Re5 {[%clk 0:20:02.7]} 25. c3 {[%clk 0:20:45.2]} 25... Rhe8 {[%clk 0:19:58.2]} 26. Ba4 {[%clk 0:20:44.3]} 26... b5 {[%clk 0:20:04.7]} 27. b4+ {[%clk 0:20:46]} 27... Kb6 {[%clk 0:20:07.6]} 28. Bb3 {[%clk 0:20:38.3]} 28... Ng4 {[%clk 0:20:08]} 29. Rd6 {[%clk 0:20:07.3]} 29... h6 {[%clk 0:19:45.3]} 30. c4 {[%clk 0:19:47.6]} 30... Nxh2 {[%clk 0:17:27.2]} 31. c5+ {[%clk 0:19:37.4]} 31... Kc7 {[%clk 0:17:14.7]} 32. Rf7+ {[%clk 0:18:59.3]} 32... R5e7 {[%clk 0:17:07.7]} 33. Kd2 {[%clk 0:18:49.3]} 33... Rxf7 {[%clk 0:17:02.8]} 34. Bxf7 {[%clk 0:18:55.6]} 34... Re7 {[%clk 0:17:07.9]} 35. Be6 {[%clk 0:18:58.2]} 35... Nf1+ {[%clk 0:17:09.8]} 36. Kd3 {[%clk 0:18:56.8]} 36... Ng3 {[%clk 0:17:11.6]} 37. Ke3 {[%clk 0:19:00.4]} 37... Nh5 {[%clk 0:17:09.2]} 38. Ke4 {[%clk 0:18:53.8]} 38... Nf6+ {[%clk 0:17:00.6]} 39. Kf5 {[%clk 0:19:00.8]} 39... b6 {[%clk 0:16:52]} 40. a3 {[%clk 0:18:55.9]} 40... bxc5 {[%clk 0:16:57.7]} 41. bxc5 {[%clk 0:19:01.6]} 41... Ne8 {[%clk 0:16:52.2]} 42. Rd4 {[%clk 0:18:45.2]} 42... Nf6 {[%clk 0:16:38.8]} 43. a4 {[%clk 0:18:32]} 43... Nh5 {[%clk 0:16:10.3]} 44. a5 {[%clk 0:18:14.7]} 44... Ng3+ {[%clk 0:16:14.7]} 45. Kg6 {[%clk 0:18:03.4]} 45... Rxe6+ {[%clk 0:16:13.6]} 46. Kf7 {[%clk 0:18:02.5]} 46... Re3 {[%clk 0:16:19.9]} 47. a6 {[%clk 0:17:59.9]} 47... Ra3 {[%clk 0:16:23.2]} 48. a7 {[%clk 0:17:35.3]} 48... Rxa7 {[%clk 0:16:26.2]} 49. Ke8 {[%clk 0:17:32.8]} 49... Ra8+ {[%clk 0:16:24.9]} 50. Kf7 {[%clk 0:17:34.4]} 50... Rd8 {[%clk 0:16:30.7]} 51. Rg4 {[%clk 0:17:25.2]} 51... Rd7+ {[%clk 0:16:15]} 52. Ke6 {[%clk 0:17:14.8]} 52... Nh5 {[%clk 0:16:10.8]} 53. g3 {[%clk 0:16:56.1]} 53... Nf6 {[%clk 0:16:15.8]} 54. Rg6 {[%clk 0:16:54.5]} 54... Nd5 {[%clk 0:16:04.7]} 55. Ke5 {[%clk 0:16:44.3]} 55... Nb4 {[%clk 0:15:40.8]} 56. Ke6 {[%clk 0:16:40.6]} 56... Na6 {[%clk 0:15:38.6]} 57. Ke5 {[%clk 0:16:26.7]} 57... Nxc5 {[%clk 0:15:41.9]} 58. Rg4 {[%clk 0:16:07.9]} 58... Nd3+ {[%clk 0:15:37.4]} 59. Ke6 {[%clk 0:16:02.2]} 59... b4 {[%clk 0:15:38.8]} 60. Rh4 {[%clk 0:15:45.3]} 60... b3 {[%clk 0:15:42.7]} 61. Ra4 {[%clk 0:15:44.7]} 61... Nc5+ {[%clk 0:15:45.7]} 62. Ke5 {[%clk 0:14:09.6]} 62... Nxa4 {[%clk 0:15:53.6]} 63. Ke6 {[%clk 0:14:18]} 63... b2 {[%clk 0:16:01.9]} 64. Ke5 {[%clk 0:14:25.6]} 64... b1=Q {[%clk 0:16:07.4]} 65. g4 {[%clk 0:14:34.4]} 65... Re7+ {[%clk 0:16:11.7]} 66. Kd4 {[%clk 0:14:37.2]} 66... Nc3 {[%clk 0:16:13.3]} 67. g5 {[%clk 0:14:36.1]} 67... hxg5 {[%clk 0:16:18.2]} 68. Kxc3 {[%clk 0:14:38.9]} 68... Re4 {[%clk 0:16:22.6]} 69. Kd2 {[%clk 0:14:31.7]} 69... Qb3 {[%clk 0:16:18.1]} 70. Kc1 {[%clk 0:14:30.1]} 70... Rh4 {[%clk 0:16:21.2]} 71. Kd2 {[%clk 0:14:38.5]} 71... Rh2+ {[%clk 0:16:29.9]} 72. Ke1 {[%clk 0:14:47]} 72... Qb1# {[%clk 0:16:37.9]} 0-1

[Event "Live Chess"]
[Site "Chess.com"]
[Date "2021.02.06"]
[Round "-"]
[White "smashyplayz"]
[Black "NiceLoyalLogic"]
[Result "1-0"]
[CurrentPosition "1R2k3/2R5/8/8/3P2P1/2P5/7P/6K1 b - -"]
[Timezone "UTC"]
[ECO "B13"]
[ECOUrl "https://www.chess.com/openings/Caro-Kann-Defense-Exchange-Variation-3...cxd5"]
[UTCDate "2021.02.06"]
[UTCTime "20:31:20"]
[WhiteElo "1397"]
[BlackElo "1021"]
[TimeControl "1200+10"]
[Termination "smashyplayz won by checkmate"]
[StartTime "20:31:20"]
[EndDate "2021.02.06"]
[EndTime "20:52:27"]
[Link "https://www.chess.com/live/game/6472989797"]

1. e4 {[%clk 0:20:09.5]} 1... c6 {[%clk 0:20:01.9]} 2. d4 {[%clk 0:20:17.1]} 2... d5 {[%clk 0:20:09.9]} 3. exd5 {[%clk 0:20:27]} 3... cxd5 {[%clk 0:20:18]} 4. Nc3 {[%clk 0:20:35.9]} 4... Nf6 {[%clk 0:20:23.9]} 5. Bf4 {[%clk 0:20:43.4]} 5... e6 {[%clk 0:20:31.6]} 6. Nf3 {[%clk 0:20:51.7]} 6... Bd6 {[%clk 0:20:38.3]} 7. Bg3 {[%clk 0:20:56.9]} 7... O-O {[%clk 0:20:36.8]} 8. Bb5 {[%clk 0:21:02.6]} 8... a6 {[%clk 0:20:37.2]} 9. Bd3 {[%clk 0:21:09.1]} 9... Re8 {[%clk 0:20:33.1]} 10. O-O {[%clk 0:21:16.4]} 10... h6 {[%clk 0:20:25.1]} 11. Re1 {[%clk 0:21:24.5]} 11... b5 {[%clk 0:20:27.9]} 12. a3 {[%clk 0:21:27.3]} 12... Qc7 {[%clk 0:20:28.6]} 13. Bxd6 {[%clk 0:21:27.2]} 13... Qxd6 {[%clk 0:20:31.2]} 14. Ne5 {[%clk 0:21:14.9]} 14... Nc6 {[%clk 0:20:34.5]} 15. Bf1 {[%clk 0:20:52.5]} 15... Nd7 {[%clk 0:20:00.9]} 16. Nxc6 {[%clk 0:20:49.3]} 16... Qxc6 {[%clk 0:20:06.6]} 17. Be2 {[%clk 0:20:52]} 17... e5 {[%clk 0:20:03]} 18. Bf3 {[%clk 0:20:18.7]} 18... e4 {[%clk 0:19:53.4]} 19. Bg4 {[%clk 0:20:20.5]} 19... Nf6 {[%clk 0:19:55.6]} 20. Bxc8 {[%clk 0:20:28.4]} 20... Raxc8 {[%clk 0:20:04.9]} 21. f3 {[%clk 0:20:20.7]} 21... exf3 {[%clk 0:20:00]} 22. Qxf3 {[%clk 0:20:27.7]} 22... Qc4 {[%clk 0:19:44.5]} 23. Qf4 {[%clk 0:19:53.8]} 23... Nh5 {[%clk 0:19:11.9]} 24. Qh4 {[%clk 0:19:25.1]} 24... Nf6 {[%clk 0:19:09.3]} 25. Rac1 {[%clk 0:17:16.5]} 25... a5 {[%clk 0:18:32.5]} 26. Rf1 {[%clk 0:13:44.2]} 26... b4 {[%clk 0:18:25.4]} 27. axb4 {[%clk 0:13:43.8]} 27... axb4 {[%clk 0:18:32.8]} 28. Na4 {[%clk 0:13:30.5]} 28... Qc6 {[%clk 0:18:37.5]} 29. Nc5 {[%clk 0:13:38.5]} 29... Nd7 {[%clk 0:18:42]} 30. Nxd7 {[%clk 0:13:39.6]} 30... Qxd7 {[%clk 0:18:49.7]} 31. Qh5 {[%clk 0:13:44.9]} 31... Re2 {[%clk 0:18:52.2]} 32. Qxe2 {[%clk 0:13:30.7]} 32... Re8 {[%clk 0:18:57.8]} 33. Qf2 {[%clk 0:13:35]} 33... Rc8 {[%clk 0:18:55.4]} 34. c3 {[%clk 0:13:38]} 34... bxc3 {[%clk 0:19:03.2]} 35. bxc3 {[%clk 0:13:47]} 35... Rc4 {[%clk 0:19:08.8]} 36. Qf3 {[%clk 0:13:55.3]} 36... Qe6 {[%clk 0:19:16]} 37. Rc2 {[%clk 0:14:01.9]} 37... Qg6 {[%clk 0:19:21.2]} 38. Rcf2 {[%clk 0:14:07.3]} 38... f6 {[%clk 0:19:29]} 39. Rc1 {[%clk 0:14:05.2]} 39... Qf7 {[%clk 0:19:33.6]} 40. Qf5 {[%clk 0:14:11.6]} 40... g6 {[%clk 0:19:41.1]} 41. Qf4 {[%clk 0:14:12.9]} 41... g5 {[%clk 0:19:48.9]} 42. Qxf6 {[%clk 0:14:21.3]} 42... Qxf6 {[%clk 0:19:57.7]} 43. Rxf6 {[%clk 0:14:30]} 43... Kg7 {[%clk 0:20:06.4]} 44. Rd6 {[%clk 0:14:36.7]} 44... Kf7 {[%clk 0:20:14.3]} 45. Rxh6 {[%clk 0:14:44.4]} 45... Ke7 {[%clk 0:20:20.8]} 46. Rg6 {[%clk 0:14:51.9]} 46... Kd7 {[%clk 0:20:26.2]} 47. Rxg5 {[%clk 0:15:00.8]} 47... Ke6 {[%clk 0:20:34.7]} 48. Re5+ {[%clk 0:15:09]} 48... Kd6 {[%clk 0:20:43.3]} 49. g4 {[%clk 0:15:16.3]} 49... Kc7 {[%clk 0:20:48.4]} 50. Rxd5 {[%clk 0:15:23.5]} 50... Rc5 {[%clk 0:20:54.7]} 51. Rxc5+ {[%clk 0:15:32.3]} 51... Kd7 {[%clk 0:21:04.2]} 52. Rb1 {[%clk 0:15:37]} 52... Ke7 {[%clk 0:21:12.4]} 53. Rb6 {[%clk 0:15:45.1]} 53... Kf8 {[%clk 0:21:20]} 54. Rc7 {[%clk 0:15:53.9]} 54... Ke8 {[%clk 0:21:28.3]} 55. Rb8# {[%clk 0:16:02.2]} 1-0